[Event "45th FIDE Olympiad 2024"]
[Site "Budapest"]
[Date "2024.09.15"]
[Round "5.62"]
[White "Gorshtein, Ido"]
[Black "Cardoso Cardoso, Jose Gabriel"]
[Result "1-0"]
[ECO "A20"]
[WhiteElo "2543"]
[BlackElo "2508"]
[Annotator "TA"]
[PlyCount "89"]
[EventDate "2024.09.05"]
[EventType "team-tourn"]
[EventCountry "HUN"]
[SourceTitle "playchess.com"]
[Source "ChessBase"]
[SourceQuality "1"]
[WhiteTeam "Israel"]
[BlackTeam "Colombia"]
[WhiteTeamCountry "ISR"]
[BlackTeamCountry "COL"]
[TimeControl "40/5400+30:1800+30"]

{[%evp 9,89,16,1,4,14,0,6,15,20,7,9,8,14,8,0,20,13,0,0,0,62,39,37,39,42,36,30,37,35,24,63,62,68,40,105,56,74,66,73,77,71,14,7,0,27,0,0,0,12,18,16,0,53,17,347,0,0,0,0,0,397,404,433,422,433,415,424,377,525,484,676,666,787,750,1032,1025,1068,647,1128,1240,1255,1232]} 1. c4 {[%emt 0:01:02]} e5 {[%emt 0:00:12]} 2. g3 {[%emt 0:00:10]} c6 {[%emt 0:00:12]} 3. Nf3 {[%emt 0:00:07]} e4 {[%emt 0:00:06]} 4. Nd4 {[%emt 0:00:05]} d5 {[%emt 0:00:07]} 5. cxd5 {[%emt 0:00:10]} Qxd5 {[%emt 0:00:06]} 6. Nc2 {[%emt 0:00:09]} Nf6 {[%emt 0:00:19]} 7. Nc3 {[%emt 0:01:24]} Qe5 {[%emt 0:00:07]} 8. Bg2 {[%emt 0:00:07] The position is equal.} Na6 {[%emt 0:00:12]} 9. Rb1 {[%emt 0:01:24]} Be7 {[%emt 0:00:14]} 10. b4 {[%emt 0:01:17]} O-O {[%emt 0:00:06]} 11. Bb2 {[%emt 0:03:44][%cal Oc3e4]} Qe6 {[%emt 0:00:46]} 12. a3 {[%emt 0:00:07]} c5 {[%emt 0:06:14][%cal Rc5b4]} 13. Ba1 {[%emt 0:09:34]} Rd8 {[%emt 0:01:08]} 14. O-O {[%emt 0:02:03]} h5 {[%emt 0:17:24]} ({Black should try} 14... b6 $11) 15. b5 {[%emt 0:18:14]} Nc7 {[%emt 0:00:03]} 16. Ne3 {[%emt 0:00:06]} a6 {[%emt 0:03:45]} 17. bxa6 {[%emt 0:04:19]} Rxa6 {[%emt 0:00:18][%cal Ob7b6]} 18. Qc2 {[%emt 0:06:11][%cal Rc3e4]} Rxa3 {[%emt 0:17:48][%cal Ob7b5]} 19. Bb2 {[%emt 0:06:28]} (19. Bxe4 $2 Rxc3 20. Bxc3 Nxe4 $19 (20... Qxe4 $2 21. Bxf6 Qxc2 22. Bxe7 $19)) (19. Nxe4 {is interesting.} Nxe4 20. Bxe4 Ra2 21. Bh7+) 19... Ra6 {[%emt 0:03:26]} 20. Nxe4 {[%emt 0:01:40]} Nxe4 {[%emt 0:00:14]} 21. Bxe4 {[%emt 0:00:14]} g6 {[%emt 0:16:19] [#]} (21... Rxd2 $14 22. Bh7+ (22. Qxd2 Qxe4 23. Qc3 f6 $14) 22... Kh8 23. Qxd2 Kxh7) 22. d3 {[%emt 0:02:43]} (22. Qc3 $1 $16 {[%csl Gb2][%cal Rc3g7]} Rd4 23. Bd3) 22... Nb5 {[%emt 0:02:01]} 23. Nc4 {[%emt 0:04:21]} Nd4 {[%emt 0:12:26]} 24. Bxd4 {[%emt 0:00:14]} cxd4 {[%emt 0:00:04]} 25. Rb5 {[%emt 0:04:11]} ({White should play} 25. Bxb7 $16 Bxb7 26. Rxb7) 25... b6 $1 $11 {[%emt 0:01:49]} 26. f4 {[%emt 0:04:54] f5 would now be deadly.} Qf6 {[%emt 0:03:50]} 27. Rg5 {[%emt 0:03:25]} Bh3 {[%emt 0:03:42] This pair of bishops is nice.} 28. Rb1 {[%emt 0:03:31]} Qe6 {[%emt 0:06:13]} 29. Re5 {[%emt 0:00:54]} Qf6 {[%emt 0:00:02]} 30. Nd2 {[%emt 0:03:06] aiming for Bb7.} Rc8 {[%emt 0:00:44]} ({Better is} 30... Ra5 $11) 31. Qd1 $36 {[%emt 0:01:47][%mdl 2048] And now Bb7 would win. Black is under pressure.} Rc5 $2 {[%emt 0:01:58][%mdl 8192] [#]} (31... Ra7 $11) 32. Nf3 $2 {[%emt 0:01:56]} ({White has to play} 32. Bb7 $1 $18 Ra7 33. Ne4 Qxe5 34. fxe5 Rxb7 35. Nxc5 Bxc5 36. Qa4) 32... Rxe5 {[%emt 0:00:27]} 33. Nxe5 {[%emt 0:02:51]} Ra2 {[%emt 0:02:04]} 34. Bd5 {[%emt 0:01:07][%csl LRa2,LRf7]} Be6 $2 {[%emt 0:00:06][%mdl 8192]} 35. Bxa2 $18 {[%emt 0:02:45]} Bxa2 {[%emt 0:00:05]} 36. Ra1 {[%emt 0:00:13][%cal Bb1a1,Ba1a7,Ba7d7,Bd7d8,Bd8d7][%mdl 32]} Bd5 {[%emt 0:00:26]} 37. Qa4 {[%emt 0:00:37]} Kg7 {[%emt 0:02:10][%cal Bg8g7,Bg7h7,Bh7h6][%mdl 32]} 38. Qd7 {[%emt 0:01:36]} (38. Qxd4 $2 {too greedy.} Bc5 $19) 38... Be6 {[%emt 0:00:49]} 39. Qe8 {[%emt 0:01:02] White is clearly winning.} (39. Qxd4 $2 {perishes.} Bc5 $19) 39... Bd5 {[%emt 0:01:16] Prevents Ra8.} 40. Ra7 {[%emt 0:01:19]} Bc5 {[%emt 0:00:33]} 41. Rd7 {[%emt 0:34:08]} Be6 {[%emt 0:07:10]} 42. Rd8 {[%emt 0:00:00][%csl Gd8][%cal Re8h8]} Kh7 {[%emt 0:00:06]} 43. Nd7 {[%emt 0:00:00]} Bxd7 {[%emt 0:02:36]} 44. Qg8+ {[%emt 0:00:00]} Kh6 {[%emt 0:00:02]} 45. Rxd7 {[%emt 0:00:00] Weighted Error Value: White=0.36/Black=0.53.  Loses game:     	---       	Black=2      Missed win:     	White=1     	---        Mistake:       	White=2     	Black=3      Inaccurate:     	White=3     	Black=4      OK:         	White=15    	Black=13     Best:        	White=1     	---        Strong:       	---       	Black=1} 1-0

[Event "45th FIDE Olympiad 2024"]
[Site "Budapest"]
[Date "2024.09.15"]
[Round "5.62"]
[White "Ferguson, Joseph"]
[Black "Anhwere, Bernard"]
[Result "0-1"]
[ECO "A03"]
[WhiteElo "1797"]
[BlackElo "1893"]
[PlyCount "82"]
[EventDate "2024.09.05"]
[EventType "team-tourn"]
[EventCountry "HUN"]
[WhiteTeam "Bahamas"]
[BlackTeam "Ghana"]
[WhiteTeamCountry "BAH"]
[BlackTeamCountry "GHA"]
[TimeControl "40/5400+30:1800+30"]

1. b3 Nf6 2. Bb2 g6 3. e3 Bg7 4. f4 O-O 5. Nf3 c5 6. Be2 Nc6 7. O-O d5 8. Bb5 Qb6 9. Bxc6 Qxc6 10. d3 b5 11. a4 b4 12. Nbd2 a5 13. Qe2 Bg4 14. h3 Bxf3 15. Qxf3 Rac8 16. Bxf6 Bxf6 17. Rad1 Bc3 18. e4 e6 19. Nb1 Bd4+ 20. Kh1 c4 21. dxc4 dxe4 22. Qe2 Rfd8 23. Nd2 f5 24. c5 Qxc5 25. Nc4 Rd5 26. g3 Rcd8 27. Kg2 R8d7 28. Rfe1 Qc7 29. h4 Bc3 30. Rf1 Qd8 31. Rxd5 exd5 32. Ne3 Bd4 33. c4 Bxe3 34. Qxe3 d4 35. Qc1 d3 36. Qd2 Qf6 37. Rc1 Qd4 38. c5 e3 39. Qd1 d2 40. Rc4 Qd5+ 41. Kh2 e2 {0-} 0-1

[Event "45th FIDE Olympiad 2024"]
[Site "Budapest"]
[Date "2024.09.15"]
[Round "5.63"]
[White "Avila Pavas, Santiago"]
[Black "Nabaty, Tamir"]
[Result "1/2-1/2"]
[ECO "C50"]
[WhiteElo "2485"]
[BlackElo "2630"]
[Annotator "TA"]
[PlyCount "137"]
[EventDate "2024.09.05"]
[EventType "team-tourn"]
[EventCountry "HUN"]
[SourceTitle "playchess.com"]
[Source "ChessBase"]
[SourceQuality "1"]
[WhiteTeam "Colombia"]
[BlackTeam "Israel"]
[WhiteTeamCountry "COL"]
[BlackTeamCountry "ISR"]
[TimeControl "40/5400+30:1800+30"]

{[%evp 9,137,21,26,12,36,14,19,-8,19,18,20,20,25,20,17,19,16,18,23,24,20,29,40,39,55,8,13,20,7,21,20,24,11,23,5,18,9,0,0,0,0,-74,-30,-37,0,-75,-68,-62,-66,-69,-64,-67,-44,-52,-18,-22,-17,-22,-9,-19,-17,-155,-162,-189,-85,-64,-75,-63,-69,-73,-68,-70,0,0,0,-70,0,-29972,0,0,0,0,0,0,0,0,0,0,0,0,0,0,0,0,0,-8,-8,-8,-8,-27,-8,-8,-8,-8,-8,-8,-8,-64,-8,-8,-8,-8,-8,-16,0,-8,0,0,0,0,0,0,0,0,0,0,0,0,0,0]} 1. e4 {[%emt 0:00:06]} e5 {[%emt 0:00:28]} 2. Nf3 {[%emt 0:00:10]} Nc6 {[%emt 0:00:03]} 3. Bc4 {[%emt 0:00:15]} Bc5 {[%emt 0:00:09]} 4. d3 {[%emt 0:00:18]} h6 {[%emt 0:00:13]} 5. c3 {[%emt 0:03:05]} d6 {[%emt 0:01:21]} 6. Nbd2 {[%emt 0:02:04][%cal Bb1d2,Bd2f1,Bf1g3][%mdl 32]} Nge7 {[%emt 0:01:31]} 7. Nf1 {[%emt 0:11:18]} O-O {[%emt 0:00:55]} 8. Ng3 {[%emt 0:00:04]} Be6 {[%emt 0:01:32]} 9. Bxe6 {[%emt 0:07:39]} fxe6 {[%emt 0:00:03]} 10. b4 {[%emt 0:00:14]} Bb6 {[%emt 0:00:07]} 11. a4 {[%emt 0:00:14]} a6 {[%emt 0:01:27]} 12. Be3 {[%emt 0:07:00]} Ng6 {[%emt 0:00:46]} 13. O-O {[%emt 0:18:09]} Qd7 {[%emt 0:02:06]} 14. Rb1 {[%emt 0:03:29]} Rf6 {[%emt 0:06:19]} 15. d4 {[%emt 0:03:07]} exd4 {[%emt 0:07:56]} 16. cxd4 {[%emt 0:00:07]} d5 {[%emt 0:07:04]} 17. b5 {[%emt 0:04:31]} (17. e5 $14 {deserves consideration.} Rff8 18. Ne1) 17... axb5 {[%emt 0:02:15]} 18. axb5 {[%emt 0:01:00]} Nce7 {[%emt 0:01:51]} 19. Ne5 {[%emt 0:01:39]} Nxe5 {[%emt 0:09:14]} 20. dxe5 {[%emt 0:00:05]} Rf7 {[%emt 0:00:06]} 21. Bxb6 {[%emt 0:02:59]} cxb6 {[%emt 0:02:54]} 22. f4 {[%emt 0:05:57]} Raf8 {[%emt 0:00:55]} 23. Nh5 {[%emt 0:02:41][%cal Of4f5]} Ng6 {[%emt 0:08:24][%cal Rg6f4]} 24. Qg4 {[%emt 0:14:31]} Kh7 {[%emt 0:00:32]} 25. g3 {[%emt 0:00:16]} (25. exd5 $11 Qxd5 26. h3) 25... dxe4 {[%emt 0:01:36]} 26. Rfd1 {[%emt 0:00:06] Dodges Qd4+} Qe8 {[%emt 0:17:51]} 27. Rd4 {[%emt 0:02:46]} (27. Rd6 $11 {keeps the balance.} Re7 28. Qe2 (28. Rxb6 Qc8 $17)) 27... Qc8 {[%emt 0:07:45]} 28. Rxe4 {[%emt 0:02:50]} Rd8 {[%emt 0:01:07] White must now prevent ...Qc5+.} 29. Qe2 $1 {[%emt 0:05:14]} Rc7 {[%emt 0:01:21] Repels Rc4} 30. Rb2 {[%emt 0:00:40]} Rc1+ {[%emt 0:01:18]} 31. Kg2 {[%emt 0:00:01]} Rdd1 {[%emt 0:00:54][%cal Od1e1]} 32. Kh3 {[%emt 0:00:59]} Qd7 {[%emt 0:10:33]} 33. Rc2 {[%emt 0:02:25]} Rxc2 {[%emt 0:00:47]} 34. Qxc2 {[%emt 0:00:01]} Rd2 {[%emt 0:00:08]} 35. Qc3 {[%emt 0:00:36] [#]} (35. Qb1 $11 {remains equal.}) 35... Ne7 $1 $17 {[%emt 0:01:04][%cal Oe7f5]} 36. Rc4 {[%emt 0:00:10]} Qd5 {[%emt 0:01:45]} (36... Qxb5 $19 {has better winning chances. Threatens to win with ...Nd5.} 37. Qb4 Qxb4 38. Rxb4 Nd5) 37. Rc7 {[%emt 0:01:35]} Qg2+ {[%emt 0:02:36]} 38. Kg4 {[%emt 0:00:00]} Nf5 {[%emt 0:00:20]} 39. Qf3 {[%emt 0:00:31]} Qxh2 {[%emt 0:01:00]} 40. Qe4 $1 {[%emt 0:01:06] [#] White threatens Nf6+ and mate.} Kh8 {[%emt 0:01:41]} 41. Rc8+ {[%emt 0:30:21]} Kh7 {[%emt 0:30:02]} 42. Rc7 $1 {[%emt 0:00:00] Nf6+ would kill now.} Rd8 {[%emt 0:00:00]} ({Black should play} 42... Kg8 $15 43. Rc8+ Kf7 (43... Kh7 44. Rc7 $17) 44. Rc7+ Kf8 (44... Kg8 45. Rc8+ Kf7 46. Rc7+ Kf8 47. Rc8+ Ke7 48. Rc7+ Kd8 49. Rxg7 $15) 45. Rc8+ Ke7 (45... Kf7 46. Rc7+ Kf8 47. Rc8+ Ke7 48. Rc7+ Kd8 49. Rxg7 $11) 46. Rc7+ (46. Qxb7+ $2 Rd7 $19) 46... Kd8 47. Rxg7 Nxg7 48. Nxg7 h5+ 49. Kg5 Qxg3+ 50. Kh6 Kc8 (50... Qg4 $2 51. Qb4 $18) 51. Nxe6 Qg8 (51... h4 52. Qb4 $11)) 43. Rxg7+ $11 {[%emt 0:00:00]} (43. Qxb7 Ne3+ (43... Qe2+ 44. Qf3 Ne3+ 45. Kh3 Qxf3 46. Nf6+ Kg6 47. Rc2 gxf6 48. Kh2 Rd1 49. f5+ Nxf5 50. exf6 Qxg3#) 44. Kf3 Qg2+ 45. Kxe3 Qd2+ 46. Kf3 Qd1+ 47. Ke3 Rd3+ (47... Qxh5 48. Rxg7+ Kh8 49. Rh7+ Kg8 50. Qg7#) 48. Kf2 Rd2+ 49. Ke3 Qe2#) 43... Kh8 {[%emt 0:00:00] ( -> ...Rd4)} 44. Rg6 {[%emt 0:00:00]} (44. Rxb7 Rg8+ 45. Kf3 Qxh5+ (45... Qh1+ $2 46. Kf2 $19) 46. Kf2 Rd8 (46... Nxg3 47. Qh7#) (46... Qh2+ $2 47. Qg2 $19) (46... Nxg3 47. Qh7#) (46... Qh2+ $2 47. Qg2 $19)) 44... Ra8 {[%emt 0:00:00]} 45. Qf3 {[%emt 0:00:00]} (45. Rxe6 {is a self mate.} Rg8+ (45... Qxh5+ 46. Kxh5 Nxg3+ 47. Kxh6 $11) 46. Kf3 Qh1+ (46... Qxh5+ $2 47. Kf2 $19) 47. Ke2 Qxe4+ 48. Kf2 Qe3+ 49. Kg2 Qe2+ (49... Nxg3 50. Rxh6#) 50. Kh3 Qxh5+ 51. Kg2 Qe2+ (51... Nxg3 52. Rxh6+ Qxh6 53. Kf3 Qh1+ 54. Kf2 Qf1+ 55. Ke3 Rd8 56. e6 Qe2#) 52. Kh1 Qf1+ (52... Rxg3 53. Re8+ Kh7 54. Re7+ Nxe7 55. f5 Qh5#) 53. Kh2 Qf2+ 54. Kh3 Rxg3#) 45... Ra3 {[%emt 0:00:00]} 46. Nf6 $1 {[%emt 0:02:04][%csl Gf6][%cal Rg6g8] Chess con chili.} Qxg3+ 47. Qxg3 {[%emt 0:00:01]} Rxg3+ {[%emt 0:00:00][%mdl 4096] Endgame. KRN-KRN} 48. Kh5 {[%emt 0:00:03] Strongly threatening Rxg3.} Rh3+ {[%emt 0:00:00]} 49. Kg4 {[%emt 0:00:04]} Ne7 {[%emt 0:00:00] Dodges Rg8+} 50. Kxh3 {[%emt 0:00:25]} Nxg6 {[%emt 0:00:00] KN-KN} 51. Kg4 {[%emt 0:02:05]} Ne7 {[%emt 0:00:57]} 52. Nd7 {[%emt 0:00:35][%cal Od7f8] Hoping for Nf8!} (52. Kh5 $5 Kg7 $8 53. Ne8+ Kf8 54. Nd6 $11) 52... Nd5 {[%emt 0:02:36]} 53. Nf8 {[%emt 0:00:09]} Nc7 {[%emt 0:00:20][%cal Oh8g8] ...Kg8! would now be deadly.} 54. f5 {[%emt 0:00:47]} Kg7 {[%emt 0:00:36]} ({But not} 54... exf5+ 55. Kxf5 Nxb5 56. Ne6 $19) 55. Nd7 {[%emt 0:00:01]} (55. Nxe6+ Nxe6 56. Kh5 Nd4 $19 (56... Nf4+ $2 57. Kg4 $19)) 55... Nxb5 {[%emt 0:01:38] ...Nd4 is the strong threat.} 56. fxe6 {[%emt 0:00:57]} Nc7 {[%emt 0:00:56] aiming for ...b5.} 57. Nxb6 {[%emt 0:00:49]} Nxe6 {[%emt 0:00:08]} 58. Kf5 {[%emt 0:00:15]} (58. Nd5 $11) 58... Nd4+ {[%emt 0:01:47]} (58... Kf7 $1 $15 59. Nc4 Ng7+ 60. Ke4 Ne8) 59. Ke4 {[%emt 0:00:05] The position is equal.} Nc6 {[%emt 0:00:21]} 60. Kf5 {[%emt 0:00:05]} Kf7 {[%emt 0:00:33]} 61. e6+ {[%emt 0:00:15]} Kg7 {[%emt 0:00:30]} 62. Nd5 {[%emt 0:01:10] Inhibits Ne7+.} Kf8 {[%emt 0:00:36]} 63. Kf6 {[%emt 0:00:49] Prevents Ne7} Ke8 {[%emt 0:00:29]} 64. e7 {[%emt 0:00:18]} Kd7 {[%emt 0:00:14] Inhibits Nc7.} 65. Nb6+ $1 {[%emt 0:00:01]} Ke8 {[%emt 0:00:05]} 66. Nd5 {[%emt 0:00:03] And now Nc7+ would win.} Nxe7 {[%emt 0:00:33]} 67. Nxe7 {[%emt 0:00:05]} h5 {[%emt 0:00:10]} 68. Nf5 {[%emt 0:00:16]} Kd7 {[%emt 0:00:21]} 69. Kg5 {[%emt 0:00:05] Weighted Error Value: White=0.14 (very precise) /Black=0.13 (very precise) .  Missed win:     	---       	Black=1      Mistake:       	White=5     	Black=3      Inaccurate:     	White=1     	Black=4      OK:         	White=26    	Black=22     Best:        	White=8     	Black=3      Strong:       	White=5     	Black=1} 1/2-1/2

[Event "45th FIDE Olympiad 2024"]
[Site "Budapest"]
[Date "2024.09.15"]
[Round "5.63"]
[White "Fomevor, Cephas Clinton"]
[Black "Pride, Avian"]
[Result "1-0"]
[ECO "D35"]
[WhiteElo "1873"]
[BlackElo "1743"]
[PlyCount "61"]
[EventDate "2024.09.05"]
[EventType "team-tourn"]
[EventCountry "HUN"]
[WhiteTeam "Ghana"]
[BlackTeam "Bahamas"]
[WhiteTeamCountry "GHA"]
[BlackTeamCountry "BAH"]
[TimeControl "40/5400+30:1800+30"]

1. d4 d5 2. c4 c6 3. Nc3 Nf6 4. Nf3 e6 5. cxd5 exd5 6. Bg5 Nbd7 7. e3 Be7 8. Bd3 h6 9. Bh4 O-O 10. O-O Re8 11. Rb1 c5 12. dxc5 Nxc5 13. Bc2 Be6 14. Nb5 Bg4 15. h3 Bxf3 16. Qxf3 Nfe4 17. Bxe7 Rxe7 18. Qe2 a6 19. Nd4 Ne6 20. Nf5 Rd7 21. Rfd1 Qa5 22. Bxe4 dxe4 23. Nxh6+ gxh6 24. Rxd7 Qxa2 25. Rbd1 Nc5 26. Qg4+ Kf8 27. Rc7 b6 28. Qf4 Ke8 29. Qf6 Nd7 30. Rcxd7 Qxb2 31. Qe7# 1-0

[Event "45th FIDE Olympiad 2024"]
[Site "Budapest"]
[Date "2024.09.15"]
[Round "5.64"]
[White "Postny, Evgeny"]
[Black "Valderrama Quiceno, Esteban Alb"]
[Result "1/2-1/2"]
[ECO "D63"]
[WhiteElo "2577"]
[BlackElo "2418"]
[Annotator "TA"]
[PlyCount "74"]
[EventDate "2024.09.05"]
[EventType "team-tourn"]
[EventCountry "HUN"]
[SourceTitle "playchess.com"]
[Source "ChessBase"]
[SourceQuality "1"]
[WhiteTeam "Israel"]
[BlackTeam "Colombia"]
[WhiteTeamCountry "ISR"]
[BlackTeamCountry "COL"]
[TimeControl "40/5400+30:1800+30"]

{[%evp 18,74,24,0,32,30,26,29,27,26,39,0,0,0,0,0,0,0,0,0,0,0,0,0,0,0,2,0,1,2,10,0,0,0,0,0,0,0,0,0,0,0,0,-7,-7,-7,-7,-7,-7,-7,-7,-11,0,0,0,-6,0,0,0]} 1. d4 {[%emt 0:00:04]} Nf6 {[%emt 0:00:45]} 2. c4 {[%emt 0:00:06]} e6 {[%emt 0:00:33]} 3. Nf3 {[%emt 0:00:06]} d5 {[%emt 0:02:13]} 4. Nc3 {[%emt 0:00:13]} Be7 {[%emt 0:04:01]} 5. Bg5 {[%emt 0:01:36]} O-O {[%emt 0:03:45]} 6. e3 {[%emt 0:00:06]} Nbd7 {[%emt 0:01:58][%cal Bb8d7,Bd7e5,Be5c6][%mdl 32]} 7. Rc1 {[%emt 0:07:46]} dxc4 {[%emt 0:09:38]} 8. Bxc4 {[%emt 0:00:14]} c5 {[%emt 0:00:29]} 9. O-O {[%emt 0:02:21]} a6 {[%emt 0:02:24]} 10. Bd3 {[%emt 0:05:41]} cxd4 {[%emt 0:04:04]} 11. Nxd4 {[%emt 0:01:22]} Ne5 {[%emt 0:09:18]} 12. Bb1 {[%emt 0:02:03]} Bd7 {[%emt 0:01:31] White has an edge.} 13. Ne4 {[%emt 0:08:53]} Nc6 {[%emt 0:15:39]} 14. Qd3 {[%emt 0:36:08] [#] Intending Nxf6+ and mate.} Nxe4 {[%emt 0:10:11] The position is equal.} 15. Qxe4 {[%emt 0:01:08][%csl Gb1][%cal Re4h7]} (15. Bxe7 {simplifies} Qxe7 16. Qxe4 g6 17. Nb3) 15... g6 {[%emt 0:01:11]} 16. Bh6 {[%emt 0:02:57]} (16. Bxe7 {simplifies} Qxe7 17. Nb3 Rac8 18. Nc5) 16... Re8 {[%emt 0:05:03]} 17. Rfd1 {[%emt 0:01:37][%cal Rd4c6] Hoping for Nxc6.} Qb6 {[%emt 0:07:40]} 18. Nxc6 {[%emt 0:06:37]} Bxc6 {[%emt 0:00:13]} 19. Qe5 {[%emt 0:00:10]} Bf8 {[%emt 0:00:45] Inhibits Qg7+.} 20. Bxf8 {[%emt 0:00:08]} Rxf8 {[%emt 0:00:05]} 21. h4 {[%emt 0:00:17]} Qb4 {[%emt 0:04:47]} 22. Qf6 {[%emt 0:05:39]} (22. Qd4 {simplifies} Qxd4 23. Rxd4 Rfd8 24. Rdd1) 22... Rfe8 {[%emt 0:01:22]} 23. a3 {[%emt 0:07:10]} Qe7 {[%emt 0:00:18] Black is weak on the dark squares} (23... Qf8 {keeps more tension.} 24. g4 Rad8 25. g5 Rxd1+ 26. Rxd1 Qc5) 24. Qf4 {[%emt 0:00:39]} (24. Qxe7 {simplifies} Rxe7 25. f3 Rc7 26. Kf2) 24... h5 {[%emt 0:03:43]} 25. Qg5 {[%emt 0:04:09]} Qxg5 {[%emt 0:01:23]} 26. hxg5 {[%emt 0:00:03]} Red8 {[%emt 0:00:14]} 27. f3 {[%emt 0:01:29]} Kf8 {[%emt 0:00:08]} 28. Kf2 {[%emt 0:00:34]} Ke7 {[%emt 0:00:06]} 29. Bc2 {[%emt 0:02:00]} a5 {[%emt 0:01:44]} 30. Bb3 {[%emt 0:00:55]} Rxd1 {[%emt 0:01:32]} 31. Rxd1 $11 {[%emt 0:00:06][%mdl 4096] Endgame. KRB-KRB} a4 {[%emt 0:00:50]} 32. Bc4 {[%emt 0:01:44]} Ra5 {[%emt 0:00:29]} 33. f4 {[%emt 0:00:08]} Rc5 {[%emt 0:01:05]} 34. Bd3 {[%emt 0:00:12]} Bb5 {[%emt 0:03:03] [#] Threatens to win with ...Bxd3.} 35. Be4 {[%emt 0:00:19]} Bc6 {[%emt 0:00:15]} 36. Bd3 {[%emt 0:00:16]} Bb5 {[%emt 0:00:07] ...Bxd3 would now be deadly.} 37. Be4 {[%emt 0:01:17]} Bc6 {[%emt 0:00:13] An interesting draw.   Weighted Error Value: White=0.04 (flawless) /Black=0.03 (flawless) .  Inaccurate:     	White=1     	---        OK:         	White=13    	Black=16     Best:        	---       	Black=1} 1/2-1/2

[Event "45th FIDE Olympiad 2024"]
[Site "Budapest"]
[Date "2024.09.15"]
[Round "5.64"]
[White "Whyms, Chapell"]
[Black "Frempong-Smart, Daniel"]
[Result "0-1"]
[ECO "D15"]
[WhiteElo "1701"]
[BlackElo "1863"]
[PlyCount "76"]
[EventDate "2024.09.05"]
[EventType "team-tourn"]
[EventCountry "HUN"]
[WhiteTeam "Bahamas"]
[BlackTeam "Ghana"]
[WhiteTeamCountry "BAH"]
[BlackTeamCountry "GHA"]
[TimeControl "40/5400+30:1800+30"]

1. d4 d5 2. c4 c6 3. Nf3 Nf6 4. Nc3 a6 5. e3 Bf5 6. Qb3 Ra7 7. cxd5 cxd5 8. Be2 e6 9. Ne5 Nfd7 10. Qa4 f6 11. Nd3 Nc6 12. Qd1 b5 13. Bd2 Bd6 14. Rc1 Rc7 15. a3 O-O 16. b4 Nb6 17. Nc5 Bxc5 18. dxc5 Nc8 19. Bg4 d4 20. Bxf5 exf5 21. Qb3+ Kh8 22. Ne2 Re8 23. O-O d3 24. Nf4 Rd7 25. Rc3 Ne5 26. Ne6 Qe7 27. Nd4 f4 28. exf4 Nc4 29. Rxd3 Qe4 30. Be3 Ne7 31. Rdd1 Nd5 32. Qb1 Qxb1 33. Rxb1 Ndxe3 34. fxe3 Nxe3 35. Rfe1 Rxd4 36. Rb3 Rde4 37. Rd3 h6 38. c6 Ng4 {0-} 0-1

[Event "45th FIDE Olympiad 2024"]
[Site "Budapest"]
[Date "2024.09.15"]
[Round "5.65"]
[White "Stefansson, Vignir Vatnar"]
[Black "Cheparinov, Ivan"]
[Result "0-1"]
[ECO "B27"]
[WhiteElo "2531"]
[BlackElo "2628"]
[Annotator "TA"]
[PlyCount "84"]
[EventDate "2024.09.05"]
[EventType "team-tourn"]
[EventCountry "HUN"]
[SourceTitle "playchess.com"]
[Source "ChessBase"]
[SourceQuality "1"]
[WhiteTeam "Iceland"]
[BlackTeam "Bulgaria"]
[WhiteTeamCountry "ISL"]
[BlackTeamCountry "BUL"]
[TimeControl "40/5400+30:1800+30"]

{[%evp 15,84,0,0,0,0,-13,-5,-12,-11,-7,-10,-12,-27,-4,0,-25,-26,-26,-22,-22,-24,-37,-32,-31,-35,-47,-43,-89,-105,-106,-92,-98,-73,-59,-65,-62,-69,-59,-65,-87,-51,-75,-46,-56,-65,-103,-110,-411,-368,-416,-418,-481,-479,-494,-491,-428,-355,-418,-418,-754,-754,-894,-876,-1598,-1381,-2705,-2160,-12789,-6188,-5314,-4844]} 1. e4 c5 2. Nf3 d6 3. d4 cxd4 4. Qxd4 Nf6 5. Nc3 Nc6 6. Qe3 g6 7. Bc4 Bg7 8. O-O O-O 9. Rd1 Bg4 10. e5 Nxe5 (10... Ne8 {feels hotter.} 11. e6 f5 12. Nd5 Nc7) 11. Nxe5 {The position is equal.} Bxd1 12. Nxf7 Rxf7 13. Bxf7+ Kxf7 14. Nxd1 d5 15. Qb3 Qb6 16. Be3 Qxb3 17. axb3 a6 18. Bd4 {[#]} e5 $1 19. Bxe5 Re8 20. f4 Ng4 21. Nc3 (21. g3 $15) 21... Bxe5 $17 22. fxe5 Rxe5 {[%mdl 4096] Endgame. KRN-KRN} 23. Rf1+ Ke7 24. Nd1 Ke6 25. h3 Nf6 26. Rf3 Re1+ 27. Rf1 {[#]} Rxf1+ 28. Kxf1 {KN-KN} d4 29. Ke2 Ke5 30. Nf2 {[#]} Kf4 $1 31. c3 $2 {[%mdl 8192] This move loses the game for White.} (31. Nh1 $17) 31... dxc3 $19 32. bxc3 Ne4 (32... Kg3 $2 33. Kf1 $17) 33. Nd3+ Kg3 34. c4 Kxg2 35. Ke3 Nd6 36. Nf4+ Kg3 {Strongly threatening ...g5.} 37. c5 (37. Ne6 $142 h6 (37... Kxh3 $2 38. Ng5+ Kh4 39. Nxh7 $19) 38. c5) 37... Nf7 {Black is clearly winning.} 38. Ke4 g5 39. Ne6 Kxh3 40. Kf5 h5 41. Kg6 {[#]} Kg4 $1 {[%cal Oh5h4] ...h4! is the strong threat.} 42. Kxf7 (42. Nc7 Ne5+) 42... h4 {Weighted Error Value: White=0.95/Black=0.01 (flawless) .  Loses game:     	White=1     	---        Mistake:       	White=2     	---        Inaccurate:     	White=1     	Black=1      OK:         	White=8     	Black=13     Best:        	White=1     	Black=8      Strong:       	---       	Black=1} 0-1

[Event "45th FIDE Olympiad 2024"]
[Site "Budapest"]
[Date "2024.09.15"]
[Round "5.65"]
[White "Sihlongonyane, Sikhanyiso"]
[Black "Hemam, Moulaye Brahim"]
[Result "1/2-1/2"]
[ECO "B31"]
[WhiteElo "1813"]
[BlackElo "1977"]
[PlyCount "119"]
[EventDate "2024.09.05"]
[EventType "team-tourn"]
[EventCountry "HUN"]
[WhiteTeam "Eswatini"]
[BlackTeam "Mauritania"]
[BlackTeamCountry "MAU"]
[TimeControl "40/5400+30:1800+30"]

1. e4 c5 2. Nf3 Nc6 3. Bb5 g6 4. O-O Bg7 5. c3 Nf6 6. Re1 a6 7. Ba4 b5 8. Bc2 e5 9. d4 cxd4 10. cxd4 exd4 11. Nxd4 O-O 12. Nc3 Bb7 13. Nb3 d6 14. Be3 Nb4 15. Bb1 Re8 16. a3 Nc6 17. f3 Ne5 18. Bd4 Nc4 19. Ra2 Rc8 20. Nd2 d5 21. Nxc4 dxc4 22. Bc2 Qe7 23. Be3 Rcd8 24. Qe2 Nd7 25. Raa1 Nc5 26. Rad1 Ne6 27. Bc1 Nd4 28. Qf2 Nxc2 29. Qxc2 Qc5+ 30. Be3 Qc7 31. Rxd8 Rxd8 32. Rd1 Rd7 33. Rxd7 Qxd7 34. Qd2 Qe7 35. Bb6 Bf6 36. Bd4 Qd8 37. Be3 Qxd2 38. Bxd2 Bd4+ 39. Kf1 Kf8 40. Ke2 Ke7 41. Nd1 Ke6 42. Bc3 Bc5 43. Ne3 h5 44. Nc2 f5 45. exf5+ Kxf5 46. Nd4+ Bxd4 47. Bxd4 g5 48. h3 g4 49. hxg4+ hxg4 50. fxg4+ Kxg4 51. Kf2 Kf4 52. Bc3 Ke4 53. Kg3 Kd3 54. Kf2 Kc2 55. g4 Kb3 56. Ke3 a5 57. Kd2 b4 58. axb4 axb4 59. Be5 Ka2 60. g5 1/2-1/2